fUSD/lending_fUSD_20250223
["ID","MTS","AMOUNT","RATE_DAILY","PERIOD"]
[354154085,1740292248133,-500.0,0.00019898,3]
[354154086,1740292248143,-500.0,0.00019898,3]
[354154087,1740292248152,-500.0,0.00019898,3]
[354154088,1740292248162,-500.0,0.00019898,3]
[354154089,1740292248171,-500.0,0.00019898,3]
[354154090,1740292248180,-546.21,0.00019898,3]
[354154091,1740292248190,-500.0,0.00019898,3]
[354154092,1740292248199,-526.08089854,0.00019898,3]
[354154093,1740292248208,-500.0,0.00019898,3]
[354154094,1740292248218,-500.0,0.00019898,3]
[354154095,1740292248227,-500.0,0.00019898,3]
[354154096,1740292248237,-500.0,0.00019898,3]
[354154097,1740292248246,-572.98958983,0.00019898,3]
[354154098,1740292248255,-501.08294226,0.00019898,3]
[354154099,1740292248264,-500.0,0.00019898,3]
[354154100,1740292248273,-500.0,0.00019898,3]
[354154101,1740292248282,-500.0,0.00019898,3]
[354154102,1740292248291,-500.0,0.00019898,3]
[354154103,1740292248300,-500.0,0.00019898,3]
[354154104,1740292248309,-500.0,0.00019898,3]
[354154105,1740292248319,-500.0,0.00019898,3]
[354154106,1740292248328,-500.0,0.00019898,3]
[354154107,1740292248337,-200.94,0.00019898,3]
[354154108,1740292248347,-500.0,0.00019898,3]
[354154109,1740292248355,-500.0,0.00019898,3]
[354154110,1740292248366,-500.0,0.00019898,3]
[354154111,1740292248376,-500.0,0.00019898,3]
[354154112,1740292248386,-500.0,0.00019898,3]
[354154113,1740292248395,-500.0,0.00019898,3]
[354154114,1740292248405,-500.0,0.00019898,3]
[354154115,1740292248414,-500.0,0.00019898,3]
[354154116,1740292248424,-500.0,0.00019898,3]
[354154117,1740292248434,-500.0,0.00019898,3]
[354154118,1740292248443,-583.81,0.00019898,3]
[354154119,1740292248452,-536.8930487,0.00019898,3]
[354154120,1740292248461,-500.0,0.00019898,3]
[354154121,1740292248471,-500.0,0.00019898,3]
[354154122,1740292248481,-500.0,0.00019898,3]
[354154123,1740292248490,-500.0,0.00019898,3]
[354154124,1740292248499,-500.0,0.00019898,3]
[354154125,1740292248508,-500.0,0.00019898,3]
[354154126,1740292248518,-500.0,0.00019898,3]
[354154127,1740292248527,-500.0,0.00019898,3]
[354154128,1740292248536,-500.0,0.00019898,3]
[354154129,1740292248546,-500.0,0.00019898,3]
[354154130,1740292248555,-469.15269777,0.00019898,3]
[354154131,1740292248565,-500.0,0.00019898,3]
[354154132,1740292248575,-500.0,0.00019898,3]
[354154133,1740292248586,-500.0,0.00019898,3]
[354154134,1740292248596,-500.0,0.00019898,3]
[354154135,1740292248605,-500.0,0.00019898,3]
[354154136,1740292248614,-500.0,0.00019898,3]
[354154137,1740292248625,-506.65554509,0.00019898,3]
[354154138,1740292248634,-326.97,0.00019898,3]
[354154139,1740292248644,-500.0,0.00019898,3]
[354154140,1740292248653,-500.0,0.00019898,3]
[354154141,1740292248664,-500.0,0.00019898,3]
[354154142,1740292248674,-500.0,0.00019898,3]
[354154143,1740292248683,-500.63,0.00019898,3]
[354154144,1740292248693,-500.0,0.00019898,3]
[354154145,1740292248703,-500.0,0.00019898,3]
[354154146,1740292248713,-500.0,0.00019898,3]
[354154147,1740292248723,-295.98,0.00019898,3]
[354154148,1740292248732,-311.94006667,0.00019898,3]
[354154149,1740292248742,-500.0,0.00019898,3]
[354154150,1740292248751,-500.0,0.00019898,3]
[354154151,1740292248761,-500.0,0.00019898,3]
[354154152,1740292248771,-503.47917641,0.00019898,3]
[354154153,1740292248781,-500.0,0.00019898,3]
[354154154,1740292248791,-500.0,0.00019898,3]
[354154155,1740292248800,-500.0,0.00019898,3]
[354154156,1740292248809,-500.0,0.00019898,3]
[354154157,1740292248819,-500.0,0.00019898,3]
[354154158,1740292248828,-508.66089045,0.00019898,3]
[354154159,1740292248838,-500.0,0.00019898,3]
[354154160,1740292248848,-392.03,0.00019898,3]
[354154161,1740292248857,-500.0,0.00019898,3]
[354154162,1740292248867,-283.59,0.00019898,3]
[354154163,1740292248876,-500.0,0.00019898,3]
[354154164,1740292248886,-500.0,0.00019898,3]
[354154165,1740292248895,-500.0,0.00019898,3]
[354154166,1740292248904,-500.0,0.00019898,3]
[354154167,1740292248914,-500.0,0.00019898,3]
[354154168,1740292248923,-504.10100382,0.00019898,3]
[354154169,1740292248933,-620.76,0.00019898,3]
[354154170,1740292248943,-500.0,0.00019898,3]
[354154171,1740292248952,-500.0,0.00019898,3]
[354154172,1740292248961,-500.0,0.00019898,3]
[354154173,1740292248970,-636.36,0.00019898,3]
[354154174,1740292248981,-500.0,0.00019898,3]
[354154175,1740292248991,-500.92,0.00019898,3]
[354154176,1740292249001,-500.0,0.00019898,3]
[354154177,1740292249010,-500.0,0.00019898,3]
[354154178,1740292249020,-500.0,0.00019898,3]
[354154179,1740292249029,-500.0,0.00019898,3]
[354154180,1740292249039,-500.0,0.00019898,3]
[354154181,1740292249048,-500.0,0.00019898,3]
[354154182,1740292249058,-500.0,0.00019898,3]
[354154183,1740292249067,-500.0,0.00019898,3]
[354154184,1740292249077,-500.0,0.00019898,3]
[354154185,1740292249087,-500.0,0.00019898,3]
[354154186,1740292249096,-540.64,0.00019898,3]
[354154187,1740292249106,-500.0,0.00019898,3]
[354154188,1740292249116,-500.0,0.00019898,3]
[354154189,1740292249126,-500.0,0.00019898,3]
[354154190,1740292249135,-500.0,0.00019898,3]
[354154191,1740292249144,-500.0,0.00019898,3]
[354154192,1740292249154,-500.0,0.00019898,3]
[354154193,1740292249164,-560.0845514,0.00019898,3]
[354154194,1740292249174,-500.0,0.00019898,3]
[354154195,1740292249184,-500.0,0.00019898,3]
[354154196,1740292249194,-519.46,0.00019898,3]
[354154197,1740292249203,-500.0,0.00019898,3]
[354154198,1740292249213,-500.0,0.00019898,3]
[354154199,1740292249222,-500.0,0.00019898,3]
[354154200,1740292249232,-500.0,0.00019898,3]
[354154201,1740292249242,-500.0,0.00019898,3]
[354154202,1740292249251,-500.0,0.00019898,3]
[354154203,1740292249261,-500.0,0.00019898,3]
[354154204,1740292249270,-500.22,0.00019898,3]
[354154205,1740292249280,-500.0,0.00019898,3]
[354154206,1740292249289,-500.0,0.00019898,3]
[354154207,1740292249299,-500.0,0.00019898,3]
[354154208,1740292249309,-576.32582435,0.00019898,3]
[354154209,1740292249318,-500.0,0.00019898,3]
[354154210,1740292249328,-500.0,0.00019898,3]
[354154211,1740292249338,-500.0,0.00019898,3]
[354154212,1740292249347,-508.05784587,0.00019898,3]
[354154213,1740292249358,-500.0,0.00019898,3]
[354154214,1740292249368,-526.76320415,0.00019898,3]
[354154215,1740292249378,-506.58556317,0.00019898,3]
[354154216,1740292249388,-500.0,0.00019898,3]
[354154217,1740292249398,-501.1801333,0.00019898,3]
[354154218,1740292249409,-506.61,0.00019898,3]
[354154219,1740292249419,-500.0,0.00019898,3]
[354154220,1740292249429,-628.54554355,0.00019898,3]
[354154221,1740292249439,-500.0,0.00019898,3]
[354154222,1740292249449,-500.0,0.00019898,3]
[354154223,1740292249459,-500.0,0.00019898,3]
[354154224,1740292249468,-507.33779639,0.00019898,3]
[354154225,1740292249478,-500.0,0.00019898,3]
[354154226,1740292249488,-500.0,0.00019898,3]
[354154227,1740292249498,-500.0,0.00019898,3]
[354154228,1740292249509,-503.3,0.00019898,3]
[354154229,1740292249519,-500.0,0.00019898,3]
[354154230,1740292249529,-500.0,0.00019898,3]
[354154231,1740292249539,-394.98577474,0.00019898,3]
[354154232,1740292249548,-154.62,0.00019898,2]
[354154233,1740292249558,-508.28066399,0.00019899,3]
[354154234,1740292249571,-501.42163698,0.00019899,3]
[354154235,1740292249584,-500.0,0.00019899,3]
[354154236,1740292249594,-504.35457706,0.00019899,3]
[354154237,1740292249604,-500.0,0.00019899,3]
[354154238,1740292249613,-502.83819409,0.00019899,3]
[354154239,1740292249622,-500.0,0.00019899,3]
[354154240,1740292249633,-508.20397274,0.00019899,3]
[354154241,1740292249642,-204.30885104,0.00019899,3]
[354154242,1740292249653,-501.29325338,0.00019899,3]
[354154243,1740292249662,-500.0,0.00019899,3]
[354154244,1740292249672,-500.0,0.00019899,3]
[354154245,1740292249682,-504.69794348,0.00019899,2]
[354154246,1740292249691,-502.96348699,0.00019899,3]
[354154247,1740292249701,-501.39754957,0.00019899,3]
[354154248,1740292249711,-500.0,0.00019899,3]
[354154249,1740292249720,-501.31687234,0.00019899,3]
[354154250,1740292249730,-500.0,0.00019899,3]
[354154251,1740292249740,-501.7931714,0.00019899,3]
[354154252,1740292249750,-408.50132549,0.00019899,3]
[354154253,1740292249760,-500.0,0.00019899,3]
[354154254,1740292249770,-500.72898448,0.00019899,3]
[354154255,1740292249779,-500.0,0.00019899,3]
[354154256,1740292249789,-500.68579503,0.00019899,3]
[354154257,1740292249799,-500.0,0.00019899,3]
[354154258,1740292249809,-500.0,0.00019899,3]
[354154259,1740292249819,-235.07204755,0.00019899,3]
[354154260,1740292249829,-417.07,0.00019899,3]
[354154261,1740292249838,-293.15,0.00019899,3]
[354154262,1740292249848,-262.05015416,0.00019899,3]
[354154263,1740292249858,-500.0,0.00019899,3]
[354154264,1740292249868,-500.0,0.00019899,3]
[354154265,1740292249878,-500.0,0.00019899,3]
[354154266,1740292249887,-500.0,0.00019899,3]
[354154267,1740292249897,-504.76178213,0.00019899,3]
[354154268,1740292249907,-162.0,0.000199,2]
[354154269,1740292249916,-170.83615962,0.000199,2]
[354154270,1740292249926,-203.73496005,0.000199,2]
[354154271,1740292249936,-168.82076762,0.000199,2]
[354154272,1740292249946,-31227.60890534,0.000199,5]
[354154273,1740292249957,-227.72448686,0.000199,2]
[354154274,1740292249967,-153.35,0.00019966,2]
[354154275,1740292249977,-500.0,0.00019967,2]
[354154276,1740292249988,-2000.0,0.00019967,2]
[354154277,1740292249999,-500.0,0.00019967,2]
[354154278,1740292250009,-500.0,0.00019967,2]
[354154279,1740292250019,-200.0,0.00019967,2]
[354154280,1740292250029,-150.0,0.00019982,2]
[354154281,1740292250039,-1000.0,0.0001999,2]
[354154282,1740292250049,-274.55809524,0.0001999,2]
[354154283,1740292250058,-530.35779963,0.00019995,3]
[354154284,1740292250069,-289.03948985,0.00019995,3]
[354154285,1740292250079,-209.90951817,0.00019995,3]
[354154286,1740292250089,-428.09553095,0.00019995,3]
[354154287,1740292250099,-500.0,0.00019995,3]
[354154288,1740292250108,-512.6097942,0.00019995,3]
[354154289,1740292250118,-501.55218421,0.00019995,3]
[354154290,1740292250128,-500.0,0.00019995,3]
[354154291,1740292250137,-333.35446043,0.00019995,3]
[354154292,1740292250147,-528.60022261,0.00019995,3]
[354154293,1740292250157,-473.48007413,0.00019999,3]
[354154294,1740292250167,-150.0,0.00019999,2]
[354154295,1740292250177,-10256.05772043,0.0002,30]
[354154296,1740292250186,-12500.0,0.0002,2]
[354154297,1740292250197,-2110.0,0.0002,2]
[354154298,1740292250207,-10000.0,0.0002,2]
[354154299,1740292250218,-91173.78787687,0.0002,2]
[354154300,1740292250227,-1027483.44297442,0.0002,2]
[354154301,1740292250237,-134737.85582413,0.0002,2]
[354154302,1740292250247,-298.64674711,0.0002,2]
[354154303,1740292250256,-10000.0,0.0002,2]
[354154304,1740292250266,-1470.18407044,0.0002,2]
[354154305,1740292250275,-4266.81145247,0.0002,2]
[354154306,1740292250285,-1397.15314421,0.0002,5]
[354154307,1740292250295,-159.0,0.0002,2]
[354154308,1740292250304,-288542.44980253,0.0002,4]
[354154309,1740292250315,-7500.0,0.0002,2]
[354154310,1740292250325,-3837.26120145,0.0002,2]
[354154311,1740292250335,-45785.71928972,0.0002,2]
[354154312,1740292250345,-3950.0,0.0002,2]
[354154313,1740292250354,-1241.07648727,0.0002,2]
[354154314,1740292250364,-296.23823515,0.0002,30]
[354154315,1740292250374,-387.78980229,0.0002,14]
[354154316,1740292250384,-77925.91824135,0.0002,3]
[354154317,1740292250394,-416.30905578,0.0002,30]
[354154318,1740292250404,-154122.16292555,0.0002,30]
[354154319,1740292250414,-1323.48725315,0.0002,2]
[354154320,1740292250423,-2788.14027968,0.0002,7]
[354154321,1740292250433,-11741.69261639,0.0002,2]
[354154322,1740292250443,-502.96055418,0.0002,7]
[354154323,1740292250453,-286951.32157217,0.0002,15]
[354154324,1740292250577,-400.90341858,0.0002,15]
[354154325,1740292250591,-1103.16466522,0.0002,15]
[354154326,1740292250631,-503.39296539,0.00019726,3]
[354154327,1740292250640,-354.35703458,0.0002,15]
[354154328,1740292250654,-339.86169624,0.0002,15]
[354154329,1740292250666,-12136.48527984,0.0002,15]
[354154330,1740292250722,-530.81125564,0.0002,15]
[354154331,1740292250735,-86500.0,0.0002,15]
[354154332,1740292250748,-260000.0,0.0002,15]
[354154333,1740292250760,-6432.51010887,0.0002,15]
[354154334,1740292250780,-262.44822189,0.0002,15]
[354154335,1740292250792,-572.54553653,0.0002,15]
[354154336,1740292250804,-1080.68123411,0.0002,15]
[354154337,1740292250839,-150.0,0.00015563,2]
[354154338,1740292250848,-150.0,0.00019898,3]
[354154339,1740292250860,-324.43,0.00019898,3]
[354154340,1740292250871,-27.38857996,0.00019898,3]
[354154341,1740292250880,-788.00097222,0.0002,15]
[354154342,1740292250891,-5152.12350002,0.0002,15]
[354154343,1740292250903,-307835.18341672,0.0002,15]
[354154344,1740292250914,-445.99100061,0.0002,15]
[354154345,1740292250925,-850.0,0.0002,15]
[354154346,1740292250941,-313.87554878,0.0002,15]
[354154351,1740292799173,-4841.6612,9.9e-05,2]
[354154352,1740292799197,-150.0,9.989e-05,2]
[354154353,1740292799221,-3787.52718892,9.99e-05,2]
[354154354,1740292799244,-120.81161108,9.99e-05,2]
[354154358,1740293148219,151.43,8.767e-05,2]
[354154371,1740293432258,-60.32862157,9.99e-05,2]
[354154372,1740293432267,-150.0,0.00010064,2]
[354154373,1740293432276,-156.61543,0.00010958,2]
[354154374,1740293432285,-133.05594843,0.00010958,2]
[354154375,1740293432369,-37.34823757,0.00010958,2]
[354154376,1740293432378,-162.824768,0.00010958,2]
[354154377,1740293432387,-156.19901,0.00010958,2]
[354154378,1740293432396,-150.0,0.00010989,2]
[354154379,1740293432409,-127.54584061,0.00010989,2]
[354154380,1740293432420,-22.45415939,0.00010989,2]
[354154381,1740293432429,-170.404186,0.00011041,2]
[354154382,1740293432439,-156.61543,0.00011123,2]
[354154383,1740293432447,-170.404186,0.00011123,2]
[354154384,1740293432458,-156.61543,0.00011205,2]
[354154385,1740293432466,-170.404186,0.00011205,2]
[354154386,1740293432476,-156.61543,0.00011369,2]
[354154387,1740293432486,-170.404186,0.00011369,2]
[354154388,1740293432495,-64.12280661,0.00015616,2]
[354154389,1740293432507,-384.85573099,0.00015616,2]
[354154390,1740293432521,-51.0214624,0.00015616,2]
[354154391,1740293432531,-399.62,0.00015899,2]
[354154392,1740293432539,-500.0,0.00016419,2]
[354154393,1740293432549,-500.0,0.00016419,2]
[354154394,1740293432558,-500.0,0.00016419,2]
[354154395,1740293432567,-1000.0,0.00016438,5]
[354154396,1740293432576,-499.07,0.00016553,2]
[354154397,1740293432585,-387.0,0.00016562,2]
[354154398,1740293432594,-638.0,0.00016563,2]
[354154399,1740293432603,-150.0,0.00016563,2]
[354154400,1740293432612,-569.0,0.00016563,2]
[354154401,1740293432621,-1266.0,0.00016563,2]
[354154402,1740293432630,-908.0,0.00016563,2]
[354154403,1740293432639,-478.44920004,0.00016563,2]
[354154404,1740293432650,-305.55079996,0.00016563,2]
[354154405,1740293432659,-1874.034,0.00016563,2]
[354154406,1740293432668,-3239.99719737,0.00016563,2]
[354154407,1740293432679,-641.44980263,0.00016563,2]
[354154408,1740293432688,-150.0,0.00016563,2]
[354154409,1740293432697,-153.0,0.00016775,2]
[354154410,1740293432706,-153.0,0.00016775,2]
[354154411,1740293432715,-1500.0,0.00017239,2]
[354154412,1740293432724,-478.94,0.0001733,2]
[354154413,1740293432733,-200.0,0.00017578,2]
[354154414,1740293432742,-2751.0,0.00017645,2]
[354154415,1740293432751,-956.53582857,0.0001767,2]
[354154416,1740293432763,-43.46417143,0.0001767,2]
[354154418,1740293432772,-327.61,0.00017705,2]
[354154420,1740293432781,-414.73,0.00017712,2]
[354154422,1740293432791,-763.6,0.00017754,2]
[354154424,1740293432800,-250.0,0.00017758,2]
[354154426,1740293432809,-767.95,0.00017759,2]
[354154428,1740293432818,-414.73,0.00017767,2]
[354154430,1740293432827,-414.73,0.00017823,2]
[354154432,1740293432836,-414.73,0.00017879,2]
[354154434,1740293432845,-414.73,0.00017935,2]
[354154436,1740293432854,-414.73,0.00017991,2]
[354154438,1740293432863,-414.73,0.00018047,2]
[354154440,1740293432872,-414.73,0.00018103,2]
[354154442,1740293432881,-414.73,0.00018159,2]
[354154444,1740293432890,-399.62,0.00018163,2]
[354154445,1740293432904,-414.73,0.00018215,2]
[354154446,1740293432915,-150.0,0.00018222,2]
[354154447,1740293432924,-414.73,0.00018271,2]
[354154448,1740293432933,-414.73,0.00018327,2]
[354154449,1740293432942,-414.73,0.00018383,2]
[354154450,1740293432951,-414.73,0.00018438,2]
[354154451,1740293432960,-414.73,0.00018494,2]
[354154452,1740293432969,-414.73,0.0001855,2]
[354154453,1740293432979,-414.73,0.00018606,2]
[354154454,1740293432988,-414.73,0.00018662,2]
[354154455,1740293432997,-412.0,0.00018712,2]
[354154456,1740293433006,-414.73,0.00018718,2]
[354154457,1740293433014,-414.73,0.00018774,2]
[354154458,1740293433023,-500.0,0.00019159,2]
[354154459,1740293433032,-600.0,0.00019159,2]
[354154460,1740293433041,-394.1,0.00019397,30]
[354154461,1740293433050,-478.94,0.00019496,2]
[354154462,1740293433059,-500.0,0.000195,2]
[354154463,1740293433069,-500.0,0.000195,2]
[354154464,1740293433078,-500.0,0.000195,2]
[354154465,1740293433087,-611.44917525,0.00019587,2]
[354154466,1740293433096,-402.3744,0.00019597,2]
[354154467,1740293433105,-1121.51858984,0.000196,2]
[354154468,1740293433114,-1087.45939614,0.000196,2]
[354154469,1740293433124,-22243.1979,0.00019626,2]
[354154470,1740293433133,-222.6732,0.00019626,2]
[354154471,1740293433142,-2011.5465,0.00019626,2]
[354154472,1740293433151,-6625.9571,0.00019626,2]
[354154473,1740293433160,-400.0,0.00019685,2]
[354154474,1740293433170,-4646.60761888,0.00019687,2]
[354154475,1740293433179,-790.203,0.00019696,2]
[354154476,1740293433188,-5645.2449,0.0001971,2]
[354154477,1740293433197,-1570.9419,0.0001971,2]
[354154478,1740293433206,-500.0,0.00019726,3]
[354154479,1740293433215,-500.0,0.00019726,3]
[354154480,1740293433224,-500.0,0.00019726,3]
[354154481,1740293433233,-500.0,0.00019726,3]
[354154482,1740293433242,-500.0,0.00019726,3]
[354154483,1740293433251,-500.0,0.00019726,3]
[354154484,1740293433259,-500.0,0.00019726,3]
[354154485,1740293433268,-246.49,0.00019726,3]
[354154486,1740293433277,-500.0,0.00019726,3]
[354154487,1740293433286,-500.0,0.00019726,3]
[354154488,1740293433294,-500.0,0.00019726,3]
[354154489,1740293433303,-500.0,0.00019726,3]
[354154490,1740293433312,-500.0,0.00019726,3]
[354154491,1740293433321,-500.0,0.00019726,3]
[354154492,1740293433330,-500.0,0.00019726,3]
[354154493,1740293433339,-500.0,0.00019726,3]
[354154494,1740293433348,-500.0,0.00019726,3]
[354154495,1740293433357,-500.0,0.00019726,3]
[354154496,1740293433366,-647.12,0.00019726,3]
[354154497,1740293433376,-500.0,0.00019726,3]
[354154498,1740293433385,-500.0,0.00019726,3]
[354154499,1740293433394,-544.04,0.00019726,3]
[354154500,1740293433405,-561.65,0.00019726,3]
[354154501,1740293433416,-504.861704,0.00019726,3]
[354154502,1740293433425,-500.0,0.00019726,3]
[354154503,1740293433435,-500.0,0.00019726,3]
[354154504,1740293433444,-500.0,0.00019726,3]
[354154505,1740293433453,-500.0,0.00019726,3]
[354154506,1740293433462,-500.0,0.00019726,3]
[354154507,1740293433472,-505.64758484,0.00019726,3]
[354154508,1740293433481,-503.85436073,0.00019726,3]
[354154509,1740293433491,-516.63448641,0.00019726,3]
[354154510,1740293433500,-500.0,0.00019726,3]
[354154511,1740293433509,-510.26233762,0.00019726,3]
[354154512,1740293433518,-500.0,0.00019726,3]
[354154513,1740293433527,-500.0,0.00019726,3]
[354154514,1740293433536,-509.91397427,0.00019726,3]
[354154515,1740293433545,-500.0,0.00019726,3]
[354154516,1740293433554,-505.79566982,0.00019726,3]
[354154517,1740293433563,-500.0,0.00019726,3]
[354154518,1740293433572,-500.0,0.00019726,3]
[354154519,1740293433581,-500.0,0.00019726,3]
[354154520,1740293433590,-500.0,0.00019726,3]
[354154521,1740293433599,-500.0,0.00019726,3]
[354154522,1740293433607,-627.28,0.00019726,3]
[354154523,1740293433616,-500.0,0.00019726,3]
[354154524,1740293433626,-500.0,0.00019726,3]
[354154525,1740293433634,-500.0,0.00019726,3]
[354154526,1740293433643,-500.0,0.00019726,3]
[354154527,1740293433652,-500.0,0.00019726,3]
[354154528,1740293433661,-500.0,0.00019726,3]
[354154529,1740293433670,-505.31476241,0.00019726,3]
[354154530,1740293433679,-500.0,0.00019726,3]
[354154531,1740293433688,-510.99019993,0.00019726,3]
[354154532,1740293433701,-500.0,0.00019726,3]
[354154533,1740293433711,-500.0,0.00019726,3]
[354154534,1740293433720,-500.0,0.00019726,3]
[354154535,1740293433729,-4646.60761888,0.00019748,2]
[354154536,1740293433738,-500.0,0.00019788,3]
[354154537,1740293433747,-7500.0,0.00019795,2]
[354154538,1740293433756,-417.17698971,0.00019797,3]
[354154539,1740293433765,-2010.68,0.000198,15]
[354154540,1740293433774,-30718.3715,0.000198,2]
[354154541,1740293433783,-1000.0,0.000198,2]
[354154542,1740293433792,-625.8687,0.000198,2]
[354154543,1740293433956,-4646.60761888,0.00019809,2]
[354154544,1740293433966,-500.0,0.00019809,3]
[354154545,1740293433975,-509.2923773,0.00019809,3]
[354154546,1740293433985,-501.67283656,0.00019809,3]
[354154547,1740293433994,-500.0,0.00019809,3]
[354154548,1740293434003,-500.0,0.00019809,3]
[354154549,1740293434012,-500.0,0.00019809,3]
[354154550,1740293434021,-500.0,0.00019809,3]
[354154551,1740293434031,-500.0,0.00019809,3]
[354154552,1740293434040,-500.0,0.00019809,3]
[354154553,1740293434049,-500.0,0.00019809,3]
[354154554,1740293434059,-500.0,0.00019809,3]
[354154555,1740293434068,-500.0,0.00019809,3]
[354154556,1740293434077,-507.23829689,0.00019809,3]
[354154557,1740293434086,-505.22435443,0.00019809,3]
[354154558,1740293434096,-504.62748208,0.00019809,3]
[354154559,1740293434105,-500.0,0.00019809,3]
[354154560,1740293434116,-500.0,0.00019809,3]
[354154561,1740293434126,-630.18,0.00019809,3]
[354154562,1740293434136,-504.24022057,0.00019809,3]
[354154563,1740293434145,-505.04968944,0.00019809,3]
[354154564,1740293434155,-267.18612854,0.00019809,3]
[354154565,1740293434164,-500.0,0.00019809,3]
[354154566,1740293434173,-498.11,0.00019809,3]
[354154567,1740293434183,-500.0,0.00019809,3]
[354154568,1740293434192,-508.99594847,0.00019809,3]
[354154569,1740293434201,-156.61543,0.00019809,3]
[354154570,1740293434211,-500.0,0.00019809,3]
[354154571,1740293434219,-500.0,0.00019809,3]
[354154572,1740293434229,-500.0,0.00019809,3]
[354154573,1740293434238,-500.0,0.00019809,3]
[354154574,1740293434247,-500.0,0.00019809,3]
[354154575,1740293434256,-500.0,0.00019809,3]
[354154576,1740293434265,-500.0,0.00019809,3]
[354154577,1740293434275,-500.0,0.00019809,3]
[354154578,1740293434284,-500.0,0.00019809,3]
[354154579,1740293434293,-500.0,0.00019809,3]
[354154580,1740293434301,-500.0,0.00019809,3]
[354154581,1740293434310,-500.0,0.00019809,3]
[354154582,1740293434319,-500.0,0.00019809,3]
[354154583,1740293434328,-506.97980906,0.00019809,3]
[354154584,1740293434337,-500.0,0.00019809,3]
[354154585,1740293434346,-320.63,0.00019809,3]
[354154586,1740293434355,-500.0,0.00019809,3]
[354154587,1740293434364,-500.0,0.00019809,3]
[354154588,1740293434373,-608.97,0.00019809,3]
[354154589,1740293434383,-256.9,0.00019809,3]
[354154590,1740293434392,-500.0,0.00019809,3]
[354154591,1740293434402,-500.0,0.00019809,3]
[354154592,1740293434417,-500.0,0.00019809,3]
[354154593,1740293434426,-500.0,0.00019809,3]
[354154594,1740293434435,-500.0,0.00019809,3]
[354154595,1740293434445,-500.0,0.00019809,3]
[354154596,1740293434455,-500.0,0.00019809,3]
[354154597,1740293434464,-500.0,0.00019809,3]
[354154598,1740293434474,-500.0,0.00019809,3]
[354154599,1740293434484,-500.0,0.00019809,3]
[354154600,1740293434493,-500.0,0.00019809,3]
[354154601,1740293434502,-500.0,0.00019809,3]
[354154602,1740293434512,-500.0,0.00019809,3]
[354154603,1740293434521,-500.0,0.00019809,3]
[354154604,1740293434531,-500.0,0.00019809,3]
[354154605,1740293434539,-500.0,0.00019809,3]
[354154606,1740293434549,-500.0,0.00019809,3]
[354154607,1740293434558,-500.0,0.00019809,3]
[354154608,1740293434568,-500.0,0.00019809,3]
[354154609,1740293434577,-500.0,0.00019809,3]
[354154610,1740293434587,-500.0,0.00019809,3]
[354154611,1740293434596,-500.0,0.00019809,3]
[354154612,1740293434605,-500.0,0.00019809,3]
[354154613,1740293434615,-500.0,0.00019809,3]
[354154614,1740293434624,-500.0,0.00019809,3]
[354154615,1740293434633,-500.0,0.00019809,3]
[354154616,1740293434643,-500.0,0.00019809,3]
[354154617,1740293434652,-500.0,0.00019809,3]